fUSD/lending_fUSD_20240404
["ID","MTS","AMOUNT","RATE_DAILY","PERIOD"]
[321501058,1712248239880,-4707.6061275,0.00039899,4]
[321501061,1712248239890,-1000.0,0.000399,2]
[321501064,1712248239899,-1012.32,0.000399,2]
[321501067,1712248239908,-400.64302,0.000399,2]
[321501070,1712248239918,-304.68,0.000399,2]
[321501073,1712248239928,-3326.05915654,0.00039997,4]
[321501076,1712248239938,-645.1091209,0.00039997,4]
[321501079,1712248239947,-255.79029936,0.0004,30]
[321501083,1712248239958,-22103.7237332,0.0004,4]
[321501085,1712248239972,-214.6091896,0.0004,30]
[321501088,1712248239981,-547.14230713,0.0004,4]
[321501091,1712248239990,-192.76675003,0.0004,2]
[321501094,1712248239999,-5758.8947196,0.0004,4]
[321501097,1712248240009,-1570.65515847,0.0004,60]
[321501099,1712248240018,-466.03830899,0.0004,15]
[321501102,1712248240027,-2010.68081896,0.0004,2]
[321501105,1712248240037,-2010.68081896,0.0004,2]
[321501108,1712248240046,-2010.68081896,0.0004,2]
[321501111,1712248240056,-2010.68081896,0.0004,2]
[321501114,1712248240066,-2010.68081896,0.0004,2]
[321501117,1712248240076,-2010.68081896,0.0004,2]
[321501120,1712248240085,-2010.68081896,0.0004,2]
[321501123,1712248240093,-2010.68081896,0.0004,2]
[321501126,1712248240103,-2010.68081896,0.0004,2]
[321501129,1712248240112,-2010.68081896,0.0004,2]
[321501132,1712248240124,-2010.68081896,0.0004,2]
[321501135,1712248240133,-2010.68081896,0.0004,2]
[321501138,1712248240144,-2010.68081896,0.0004,2]
[321501141,1712248240154,-2010.68081896,0.0004,2]
[321501144,1712248240163,-2010.68081896,0.0004,2]
[321501147,1712248240172,-2010.68081896,0.0004,2]
[321501150,1712248240182,-2010.68081896,0.0004,2]
[321501153,1712248240191,-2010.68081896,0.0004,2]
[321501156,1712248240204,-2010.68081896,0.0004,2]
[321501159,1712248240214,-2010.68081896,0.0004,2]
[321501162,1712248240223,-2010.68081896,0.0004,2]
[321501165,1712248240233,-2010.68081896,0.0004,2]
[321501168,1712248240243,-153.6146946,0.00040067,6]
[321501171,1712248240253,-302.0,0.00040085,4]
[321501174,1712248240273,-152.0,0.00040422,5]
[321501177,1712248240282,-150.0,0.00040444,120]
[321501180,1712248240292,-634.29972811,0.00040533,2]
[321501183,1712248240303,-2150.83609991,0.00040635,14]
[321501186,1712248240312,-304.68,0.00040755,2]
[321501189,1712248240321,-604.0,0.00040759,7]
[321501192,1712248240330,-2271.87,0.00040767,15]
[321501195,1712248240340,-151.18,0.00041,2]
[321501198,1712248240349,-151.18,0.00041,2]
[321501200,1712248240358,-151.18,0.00041,2]
[321501202,1712248240368,-170.84,0.00041014,2]
[321501204,1712248240377,-157.0,0.00041096,2]
[321501206,1712248240386,-2154.0,0.00041096,5]
[321501208,1712248240396,-1012.32,0.0004113,2]
[321501210,1712248240404,-1236.83,0.00041171,2]
[321501211,1712248240413,-152.0,0.00041276,6]
[321501212,1712248240422,-151.18,0.00041456,2]
[321501213,1712248240431,-22919.88670129,0.00041466,2]
[321501215,1712248240441,-153.6146946,0.00041546,12]
[321501217,1712248240451,-3000.0,0.000416,2]
[321501219,1712248240461,-304.68,0.0004161,2]
[321501221,1712248240470,-887.76276432,0.00041709,10]
[321501223,1712248240479,-1208.0,0.0004179,30]
[321501225,1712248240489,-2150.83609991,0.0004181,16]
[321501227,1712248240499,-200.0,0.00041882,2]
[321501229,1712248240508,-453.73686246,0.00042,120]
[321501231,1712248240517,-1000.0,0.000421,7]
[321501233,1712248240527,-150.0,0.00042122,120]
[321501235,1712248240536,-152.0,0.00042129,7]
[321501237,1712248240550,-1012.32,0.0004236,2]
[321501239,1712248240559,-542.309562,0.00042465,2]
[321501241,1712248240568,-634.29972811,0.00042488,2]
[321501243,1712248240577,-171.88,0.0004249,2]
[321501245,1712248240587,-560.13502918,0.000425,4]
[321501247,1712248240596,-156.14,0.0004274,2]
[321501249,1712248240606,-152.0,0.00042982,8]
[321501251,1712248240615,-2150.83609991,0.00042985,17]
[321501253,1712248240624,-721.67168931,0.00043,4]
[321501255,1712248240633,-155.0,0.00043,120]
[321501257,1712248240642,-181.0,0.00043,90]
[321501259,1712248240651,-1000.0,0.00043,7]
[321501261,1712248240661,-7500.0,0.00043,2]
[321501263,1712248240670,-153.6146946,0.00043025,18]
[321501265,1712248240680,-150.0,0.00043031,120]
[321501267,1712248240689,-600.0,0.0004315,30]
[321501269,1712248240698,-600.0,0.0004315,30]
[321501271,1712248240707,-2400.0,0.0004315,30]
[321501273,1712248240716,-500.0,0.0004315,30]
[321501275,1712248240726,-500.0,0.0004315,30]
[321501276,1712248240735,-173.41,0.00043354,120]
[321501277,1712248240746,-600.0,0.00043424,30]
[321501278,1712248240756,-1236.83,0.00043435,2]
[321501279,1712248240765,-2271.87,0.00043507,15]
[321501280,1712248240774,-151.0,0.00043585,5]
[321501281,1712248240783,-1288.950828,0.0004359,2]
[321501282,1712248240792,-600.0,0.00043698,30]
[321501283,1712248240803,-600.0,0.00043698,30]
[321501284,1712248240812,-2400.0,0.00043698,30]
[321501285,1712248240822,-500.0,0.00043698,30]
[321501286,1712248240831,-500.0,0.00043698,30]
[321501287,1712248240842,-5207.66,0.000438,4]
[321501288,1712248240851,-5207.66,0.000438,4]
[321501289,1712248240860,-5207.66,0.000438,4]
[321501290,1712248240870,-5207.66,0.000438,4]
[321501291,1712248240879,-5207.66,0.000438,4]
[321501292,1712248240888,-5207.66,0.000438,4]
[321501293,1712248240897,-5207.66,0.000438,4]
[321501294,1712248240908,-5207.66,0.000438,4]
[321501295,1712248240917,-5207.66,0.000438,4]
[321501296,1712248240927,-5207.66,0.000438,4]
[321501297,1712248240937,-152.94,0.000438,4]
[321501298,1712248240946,-152.94,0.000438,4]
[321501299,1712248240956,-152.94,0.000438,4]
[321501300,1712248240966,-152.94,0.000438,4]
[321501301,1712248240975,-152.94,0.000438,4]
[321501302,1712248240984,-152.94,0.000438,4]
[321501303,1712248240993,-152.94,0.000438,4]
[321501304,1712248241002,-152.94,0.000438,4]
[321501305,1712248241012,-152.94,0.000438,4]
[321501306,1712248241021,-152.94,0.000438,4]
[321501307,1712248241030,-151.18,0.00043828,2]
[321501308,1712248241040,-152.0,0.00043835,9]
[321501309,1712248241049,-441.1,0.00043836,2]
[321501310,1712248241059,-10000.0,0.00043838,2]
[321501311,1712248241068,-164.35161768,0.00044,2]
[321501312,1712248241077,-535.0,0.00044,120]
[321501313,1712248241341,-150.0,0.00044,44]
[321501314,1712248241353,-14318.0095112,0.00044,60]
[321501315,1712248241363,-1012.32,0.00044,2]
[321501316,1712248241373,-304.68,0.00044,2]
[321501317,1712248241383,-2150.83609991,0.00044161,19]
[321501318,1712248241394,-1508.53504133,0.00044176,2]
[321501319,1712248241404,-22919.88670129,0.00044244,2]
[321501320,1712248241414,-600.0,0.00044246,30]
[321501321,1712248241424,-600.0,0.00044246,30]
[321501322,1712248241433,-2400.0,0.00044246,30]
[321501323,1712248241443,-500.0,0.00044246,30]
[321501324,1712248241452,-3000.0,0.000444,2]
[321501325,1712248241462,-1508.53504133,0.00044415,2]
[321501326,1712248241472,-1000.0,0.00044417,2]
[321501327,1712248241481,-150.0,0.00044423,120]
[321501328,1712248241490,-634.29972811,0.00044444,2]
[321501329,1712248241499,-153.6146946,0.00044504,23]
[321501330,1712248241509,-600.0,0.0004452,30]
[321501331,1712248241518,-200.013049,0.00044525,30]
[321501332,1712248241527,-287.0,0.00044577,2]
[321501333,1712248241537,-718.099,0.00044577,2]
[321501334,1712248241550,-973.52,0.00044577,2]
[321501335,1712248241559,-1180.0,0.00044577,2]
[321501336,1712248241568,-5749.544,0.00044577,2]
[321501337,1712248241577,-2455.0,0.00044577,2]
[321501338,1712248241587,-43098.0,0.00044577,2]
[321501339,1712248241596,-4786.0,0.00044577,2]
[321501340,1712248241605,-150.0,0.00044577,2]
[321501341,1712248241615,-297.858,0.00044577,2]
[321501342,1712248241624,-152.0,0.00044689,10]
[321501343,1712248241633,-1508.53504133,0.00044736,2]
[321501344,1712248241643,-3000.0,0.0004475,24]
[321501345,1712248241653,-151.18,0.0004475,2]
[321501346,1712248241662,-171.88,0.0004475,2]
[321501347,1712248241671,-68005.03385278,0.0004476,2]
[321501348,1712248241681,-600.0,0.00044794,30]
[321501349,1712248241690,-600.0,0.00044794,30]
[321501350,1712248241699,-2400.0,0.00044794,30]
[321501351,1712248241709,-500.0,0.00044794,30]
[321501352,1712248241718,-304.68,0.00044855,2]
[321501353,1712248241728,-150.0,0.00044868,2]
[321501354,1712248241737,-871.34353157,0.0004489,10]
[321501355,1712248241746,-150.0,0.00044981,2]
[321501356,1712248241755,-5000.0,0.00044986,4]
[321501357,1712248241765,-328.47719203,0.00045,4]
[321501358,1712248241774,-547.0,0.00045,120]
[321501359,1712248241783,-1500.0,0.00045,120]
[321501360,1712248241793,-150.0,0.00045056,2]
[321501361,1712248241805,-600.0,0.00045068,30]
[321501362,1712248241814,-150.0,0.00045085,2]
[321501363,1712248241824,-11844.274,0.00045105,2]
[321501364,1712248241833,-1508.53504133,0.00045116,2]
[321501365,1712248241843,-1128.01619751,0.0004517,3]
[321501366,1712248241852,-5529.3426978,0.00045199,2]
[321501367,1712248241862,-500.0,0.000452,2]
[321501368,1712248241872,-2000.0,0.00045205,7]
[321501369,1712248241881,-200.0,0.00045205,7]
[321501370,1712248241891,-2000.0,0.00045205,7]
[321501371,1712248241900,-200.0,0.00045205,7]
[321501372,1712248241910,-1012.32,0.0004523,2]
[321501373,1712248241919,-150.0,0.00045242,2]
[321501374,1712248241929,-150.0,0.00045294,2]
[321501375,1712248241939,-1000.0,0.000453,7]
[321501376,1712248241948,-1000.0,0.000453,7]
[321501377,1712248241957,-1000.0,0.000453,7]
[321501378,1712248241967,-1000.0,0.000453,7]
[321501379,1712248241977,-1000.0,0.000453,7]
[321501380,1712248241986,-1000.0,0.000453,7]
[321501381,1712248241995,-1000.0,0.000453,7]
[321501382,1712248242004,-1000.0,0.000453,7]
[321501383,1712248242013,-506.0,0.000453,7]
[321501384,1712248242023,-440.35,0.00045329,2]
[321501385,1712248242032,-904.92,0.00045329,2]
[321501386,1712248242042,-2150.83609991,0.00045336,20]
[321501387,1712248242054,-1000.0,0.00045342,7]
[321501388,1712248242063,-1000.0,0.00045342,7]
[321501389,1712248242072,-1000.0,0.00045342,7]
[321501390,1712248242081,-1000.0,0.00045342,7]
[321501391,1712248242090,-1000.0,0.00045342,7]
[321501392,1712248242099,-1000.0,0.00045342,7]
[321501393,1712248242110,-1000.0,0.00045342,7]
[321501394,1712248242122,-600.0,0.00045342,30]
[321501395,1712248242131,-600.0,0.00045342,30]
[321501396,1712248242140,-2400.0,0.00045342,30]
[321501397,1712248242149,-500.0,0.00045342,30]
[321501398,1712248242158,-150.0,0.00045407,2]
[321501399,1712248242169,-150.0,0.00045425,2]
[321501400,1712248242178,-887.76276432,0.00045462,12]
[321501401,1712248242188,-150.0,0.00045477,2]
[321501402,1712248242197,-150.0,0.000455,8]
[321501403,1712248242207,-1508.53504133,0.00045517,2]
[321501404,1712248242216,-152.0,0.00045542,11]
[321501405,1712248242226,-150.0,0.00045581,2]
[321501406,1712248242235,-509.40422597,0.000456,2]
[321501407,1712248242244,-519.43,0.00045603,2]
[321501408,1712248242256,-560.79,0.00045603,2]
[321501409,1712248242266,-150.0,0.00045603,2]
[321501410,1712248242275,-415.28,0.00045603,2]
[321501411,1712248242284,-519.43,0.00045603,2]
[321501412,1712248242293,-697.24,0.00045603,2]
[321501413,1712248242305,-519.43,0.00045603,2]
[321501414,1712248242314,-394.73,0.00045603,2]
[321501415,1712248242323,-156.97,0.00045603,2]
[321501416,1712248242333,-161.95,0.00045603,2]
[321501417,1712248242346,-417.08,0.00045603,2]
[321501418,1712248242356,-150.0,0.00045603,2]
[321501419,1712248242365,-150.0,0.00045603,2]
[321501420,1712248242375,-304.07,0.00045603,2]
[321501421,1712248242385,-348.62,0.00045603,2]
[321501422,1712248242398,-519.43,0.00045603,2]
[321501423,1712248242407,-150.0,0.00045603,2]
[321501424,1712248242416,-519.43,0.00045603,2]
[321501425,1712248242425,-417.08,0.00045603,2]
[321501426,1712248242434,-161.95,0.00045603,2]
[321501427,1712248242444,-150.0,0.00045603,2]
[321501428,1712248242453,-150.0,0.00045603,2]
[321501429,1712248242463,-348.62,0.00045603,2]
[321501430,1712248242472,-150.0,0.00045603,2]
[321501431,1712248242482,-519.43,0.00045603,2]
[321501432,1712248242491,-417.08,0.00045603,2]
[321501433,1712248242500,-150.0,0.00045603,2]
[321501434,1712248242511,-161.95,0.00045603,2]
[321501435,1712248242521,-150.0,0.00045603,2]
[321501436,1712248242531,-150.0,0.00045603,2]
[321501437,1712248242541,-348.62,0.00045603,2]
[321501438,1712248242553,-417.08,0.00045603,2]
[321501439,1712248242565,-519.43,0.00045603,2]
[321501440,1712248242575,-150.0,0.00045603,2]
[321501441,1712248242584,-150.0,0.00045603,2]
[321501442,1712248242594,-156.52,0.00045603,2]
[321501443,1712248242604,-348.62,0.00045603,2]
[321501444,1712248242614,-150.0,0.00045603,2]
[321501445,1712248242624,-150.0,0.00045603,2]
[321501446,1712248242635,-348.62,0.00045603,2]
[321501447,1712248242645,-417.08,0.00045603,2]
[321501448,1712248242654,-519.43,0.00045603,2]
[321501450,1712248242664,-504.77,0.00045603,2]
[321501452,1712248242674,-417.08,0.00045603,2]
[321501454,1712248242683,-300.0,0.00045603,2]
[321501456,1712248242694,-348.62,0.00045603,2]
[321501457,1712248242703,-150.0,0.00045603,2]
[321501459,1712248242713,-150.0,0.00045603,2]
[321501460,1712248242722,-519.43,0.00045603,2]
[321501462,1712248242732,-519.43,0.00045603,2]
[321501464,1712248242742,-150.0,0.00045603,2]
[321501466,1712248242752,-519.43,0.00045603,2]
[321501467,1712248242762,-150.0,0.00045603,2]
[321501469,1712248242771,-519.43,0.00045603,2]
[321501471,1712248242780,-519.43,0.00045603,2]
[321501473,1712248242790,-519.43,0.00045603,2]
[321501474,1712248242799,-417.08,0.0004565,2]
[321501475,1712248242810,-338.1,0.00045656,2]
[321501476,1712248242819,-1038.86,0.00045656,2]
[321501477,1712248242828,-200.0,0.00045657,7]
[321501479,1712248242838,-2000.0,0.00045657,7]
[321501481,1712248242847,-200.0,0.00045657,7]
[321501483,1712248242856,-1236.83,0.00045699,2]
[321501485,1712248242866,-2100.0,0.00045706,14]
[321501487,1712248242877,-304.68,0.0004571,2]
[321501489,1712248242886,-150.0,0.00045733,2]
[321501491,1712248242896,-150.0,0.00045787,2]
[321501493,1712248242905,-150.0,0.00045795,2]
[321501495,1712248242916,-150.0,0.00045809,120]
[321501497,1712248242926,-150.0,0.0004581,2]
[321501499,1712248242936,-150.0,0.00045822,2]
[321501501,1712248242946,-150.0,0.00045876,2]
[321501503,1712248242958,-600.0,0.0004589,30]
[321501505,1712248242968,-600.0,0.0004589,30]
[321501507,1712248242977,-2400.0,0.0004589,30]
[321501509,1712248242987,-500.0,0.0004589,30]
[321501511,1712248242998,-150.0,0.00045891,2]
[321501512,1712248243008,-150.0,0.00045909,2]
[321501513,1712248243018,-150.0,0.00045972,2]
[321501514,1712248243027,-235.50828242,0.0004598,2]
[321501515,1712248243037,-2843147.94652042,0.0004598,4]
[321501516,1712248243095,-680.41,0.0004,2]
[321501517,1712248243110,-1330.27081896,0.0004,2]
[321501518,1712248243120,-97442.64499872,0.0004598,17]
[321501522,1712248243901,-896.82497611,0.0004,2]
[321501525,1712248243912,-1113.85584285,0.0004,2]
[321501526,1712248243921,-178.79415715,0.0004,2]
[321501529,1712248243936,-1831.88666181,0.0004,2]
[321501530,1712248243945,-2010.68081896,0.0004,2]
[321501532,1712248243955,-2010.68081896,0.0004,2]
[321501534,1712248243964,-2010.68081896,0.0004,2]
[321501536,1712248243973,-2010.68081896,0.0004,2]
[321501537,1712248243981,-2010.68081896,0.0004,2]
[321501539,1712248243990,-2010.68081896,0.0004,2]
[321501541,1712248243999,-2010.68081896,0.0004,2]
[321501543,1712248244009,-2010.68081896,0.0004,2]
[321501545,1712248244017,-2010.68081896,0.0004,2]
[321501547,1712248244026,-2010.68081896,0.0004,2]
[321501548,1712248244035,-57100.20841132,0.0004598,17]
[321501550,1712248244046,-252.89599748,0.0004598,17]
[321501552,1712248244059,-19878.48097085,0.0004598,17]
[321501626,1712248244872,-32935.320011,0.0004598,17]
[321501627,1712248244885,-54700.25423682,0.0004598,17]
[321501628,1712248244897,-2259.24091021,0.0004598,17]
[321501629,1712248244908,-567.07080004,0.0004598,17]
[321501630,1712248244920,-2928.25187854,0.0004598,17]
[321501631,1712248245096,171.52528067,0.00022776,2]
[321501644,1712248245944,-485.70839377,0.00023009,2]
[321501647,1712248245953,-500.0,0.0002301,2]
[321501650,1712248245963,-500.0,0.0002301,2]
[321501651,1712248245973,-142.58111589,0.0002301,2]
[321501653,1712248245985,-80.53043215,0.0002301,2]
[321501655,1712248245996,-455.3372313,0.00038577,2]
[321501657,1712248246020,-1706.8627687,0.00038577,2]
[321501659,1712248246029,-7902.98,0.00038577,2]
[321501661,1712248246039,-2010.68081896,0.0004,2]
[321501663,1712248246048,-2010.68081896,0.0004,2]
[321501664,1712248246061,-2010.68081896,0.0004,2]
[321501666,1712248246071,-2010.68081896,0.0004,2]
[321501667,1712248246080,-2010.68081896,0.0004,2]
[321501668,1712248246090,-2010.68081896,0.0004,2]
[321501669,1712248246100,-2010.68081896,0.0004,2]
[321501670,1712248246111,-2010.68081896,0.0004,2]
[321501671,1712248246122,-2010.68081896,0.0004,2]
[321501672,1712248246134,-2010.68081896,0.0004,2]
[321501673,1712248246143,-2010.68081896,0.0004,2]
[321501674,1712248246153,-2010.68081896,0.0004,2]
[321501675,1712248246164,-2010.68081896,0.0004,2]
[321501676,1712248246175,-2010.68081896,0.0004,2]
[321501677,1712248246184,-2010.68081896,0.0004,2]
[321501678,1712248246194,-2010.68081896,0.0004,2]
[321501679,1712248246205,-2010.68081896,0.0004,2]
[321501680,1712248246215,-2010.68081896,0.0004,2]
[321501681,1712248246224,-2010.68081896,0.0004,2]
[321501682,1712248246234,-2010.68081896,0.0004,2]
[321501683,1712248246244,-2010.68081896,0.0004,2]
[321501684,1712248246254,-150.0,0.00044481,2]
[321501685,1712248246263,-1251.0,0.00044577,2]
[321501686,1712248246273,-223.9114263,0.00045199,2]
[321501687,1712248246282,-150.0,0.00045201,2]
[321501688,1712248246292,-150.0,0.00045412,2]
[321501689,1712248246301,-150.0,0.00045495,2]
[321501690,1712248246313,-150.0,0.00045595,2]
[321501691,1712248246322,-150.0,0.00045896,2]
[321501692,1712248246331,-150.0,0.00045949,2]
[321501693,1712248246341,-32754.30764713,0.0004598,17]
[321501694,1712248246468,-2010.68081896,0.0004,2]
[321501695,1712248246478,-150.0,0.00044739,2]
[321501696,1712248246488,-387.4961992,0.0004598,17]
[321501697,1712248248057,-567.738,0.0004458,2]
[321501698,1712248248082,-537.16417105,0.0004458,2]
[321501699,1712248248093,-122.09782895,0.0004458,2]
[321501700,1712248248102,-150.0,0.00045076,2]
[321501701,1712248248112,-150.0,0.00045191,2]
[321501702,1712248248121,-35886.90217105,0.0004598,17]
[321501703,1712248248145,-929.82964855,0.0004598,17]
[321501704,1712248248157,-59460.15115032,0.0004598,17]
[321501705,1712248248358,-852.13,0.00045191,2]
[321501706,1712248248367,-55861.70711395,0.0004598,17]
[321501707,1712248249584,-166.80371109,0.00023009,2]
[321501708,1712248249593,-522.31122644,0.00023009,2]
[321501709,1712248249602,-342.22701228,0.00023009,2]
[321501710,1712248249612,-4392.60201833,0.00023009,2]
[321501711,1712248249621,-2000.0,0.00045,2]
[321501712,1712248249630,-1900.38726013,0.0004598,17]
[321501713,1712248249641,-339113.24597733,0.0004598,17]
[321501714,1712248249916,-19840.83385625,0.0004598,17]
[321501715,1712248249931,-386.13686142,0.0004598,17]
[321501716,1712248249942,-682.36101224,0.0004598,17]
[321501717,1712248249955,-1331.8735148,0.0004598,17]
[321501718,1712248249972,-155.0,0.00027,2]
[321501719,1712248249981,-9426.56493347,0.0004598,17]
[321501720,1712248250000,-3541.10523001,0.0004598,17]
[321501721,1712248250011,-3882.70999997,0.0004598,17]
[321501722,1712248250023,-3262.36835492,0.0004598,17]
[321501723,1712248250131,-2010.68081896,0.0004,2]
[321501724,1712248250141,-22832.81194603,0.0004598,17]
[321501725,1712248250153,-969.99352286,0.0004598,17]
[321501726,1712248250167,-464.38118593,0.0004598,17]
[321501727,1712248373381,407.1301357,0.00023001,2]
[321501728,1712248380224,404.3815207,0.00023001,2]
[321501729,1712248386880,1044.27755831,0.00023001,2]
[321501730,1712248390519,205.75093505,0.00023001,2]
[321501731,1712248391038,615.83031697,0.00023001,2]
[321501732,1712248395493,5474.09059094,0.00023001,2]
[321501733,1712248395561,201.66643583,0.00023001,2]
[321501734,1712248399310,1000.0,0.00023001,2]
[321501735,1712248410824,531.41244433,0.00023001,2]
[321501736,1712248471446,151.08998023,0.00022902,2]
[321501737,1712248485073,-217.34488466,0.00023002,2]
[321501738,1712248485094,-262.90696372,0.00023002,2]
[321501739,1712248485116,-4392.60201833,0.00023002,2]
[321501740,1712248485138,-150.0,0.00023002,2]
[321501741,1712248485159,-155.0,0.00023003,2]
[321501742,1712248485181,-550.23615985,0.00023003,2]
[321501743,1712248485204,-5528.27738706,0.00023003,2]
[321501744,1712248485226,-155.39746209,0.00023004,2]
[321501745,1712248485249,-557.13129815,0.00023004,2]
[321501746,1712248485272,-404.3815207,0.00023004,2]
[321501747,1712248485295,-844.0,0.00023004,2]
[321501748,1712248485316,-500.0,0.00023007,2]
[321501749,1712248485338,-398.82125984,0.00023008,2]
[321501750,1712248485360,-1834.10744535,0.00023009,2]
[321501751,1712248485383,-414.96011924,0.00023009,2]
[321501752,1712248517916,780.52307315,0.00023001,2]
[321501753,1712248520706,5508.02019839,0.00023001,2]
[321501754,1712248520934,3644.95549985,0.0002,2]
[321501755,1712248524057,155.0,0.00023001,2]
[321501756,1712248546406,-243.09587795,0.00023009,2]
[321501757,1712248546427,-287.44117018,0.00023009,2]
[321501758,1712248546736,-300.0,0.00023009,2]
[321501759,1712248546758,-939.83288273,0.00023009,2]
[321501760,1712248546781,-155.0,0.00023999,2]
[321501761,1712248546802,-224.41851828,0.00024,2]
[321501762,1712248575996,-344.10512051,0.00024,2]
[321501763,1712248995574,318.55745475,0.00024,2]
[321501764,1712249002754,10793.54837078,0.00024,2]
[321501765,1712249003608,-201.66643583,0.00024425,2]
[321501766,1712249003630,-1798.33356417,0.00024425,2]
[321501767,1712249004591,-2000.0,0.00024425,2]
[321501768,1712249004917,-1675.75702677,0.00024425,2]
[321501769,1712249004938,-205.75093505,0.00024425,2]
[321501770,1712249004959,-118.49203818,0.00024426,2]
[321501771,1712249005599,-615.83031697,0.00024425,2]
[321501772,1712249005620,-925.78552013,0.00024426,2]
[321501773,1712249005641,-458.3841629,0.00024426,2]
[321501774,1712249006282,-2000.0,0.00024426,2]
[321501775,1712249007444,-2000.0,0.00024426,2]
[321501776,1712249008258,-1069.89322416,0.00024426,2]
[321501777,1712249008279,-930.10677584,0.00024427,2]
[321501778,1712249009172,-69.89322416,0.00024427,2]
[321501779,1712249009193,-531.41244433,0.00024427,2]
[321501780,1712249021545,318.55745475,0.00024,2]
[321501781,1712249034791,1080.13687676,0.00024,2]
[321501782,1712249034814,2000.0,0.00024,2]
[321501783,1712249034836,919.86312324,0.00024,2]
[321501784,1712249035471,-500.0,0.00024428,2]
[321501785,1712249035495,-4392.60201833,0.00024428,2]
[321501786,1712249035517,-300.0,0.00024436,2]
[321501787,1712249035540,-150.0,0.00024436,2]
[321501788,1712249035561,-150.0,0.00024436,2]
[321501789,1712249035582,-3056.89,0.00024447,2]
[321501790,1712249036507,2533.67329743,0.00018,2]
[321501791,1712249036719,550.23615985,0.00024427,2]
[321501792,1712249036782,217.34488466,0.00024427,2]
[321501793,1712249039550,221.7864854,0.00024,2]
[321501794,1712249053694,2533.67329743,0.00018,2]
[321501795,1712249077716,1662.9682835,0.00018,2]
[321501796,1712249206367,200.0,0.00024305,30]
[321501797,1712249206426,200.0,0.00024305,30]
[321501798,1712249206474,200.0,0.00024305,30]
[321501799,1712249206528,200.0,0.00024305,30]
[321501800,1712249206598,200.0,0.00024305,30]
[321501801,1712249349755,401.143511,0.00018229,2]
[321501802,1712249360333,200.0,0.00027631,30]
[321501803,1712249360389,200.0,0.00027631,30]
[321501804,1712249360436,200.0,0.00027631,30]
[321501805,1712249360487,200.0,0.00027631,30]
[321501806,1712249360548,209.34844613,0.00027631,30]
[321501833,1712249432118,-500.0,0.00026889,2]
[321501834,1712249432128,-217.34488466,0.0002689,2]
[321501835,1712249432137,-205.75093505,0.00026891,2]
[321501836,1712249432146,-872.05906903,0.00026891,2]
[321501837,1712249432158,-3520.5429493,0.00026891,2]
[321501838,1712249432168,-1000.0,0.00026892,2]
[321501839,1712249432176,-531.41244433,0.00026892,2]
[321501840,1712249432186,-2852.00119788,0.00026893,2]
[321501841,1712249432195,-1609.6709345,0.00026894,2]
[321501842,1712249432204,-151.08998021,0.00026899,2]
[321501843,1712249432214,-150.0,0.00026996,2]
[321501844,1712249432223,-210.19328579,0.00026999,2]
[321501845,1712249432233,-264.46886071,0.00026999,2]
[321501846,1712249432242,-151.08998021,0.00027895,2]
[321501847,1712249432252,-999.99,0.00028888,2]
[321501848,1712249432262,-151.08998021,0.00028892,2]
[321501849,1712249432271,-260.3255,0.00028983,2]
[321501850,1712249432280,-2914.93,0.00029083,2]
[321501851,1712249432290,-150.99,0.00029083,2]
[321501852,1712249432299,-1657.73633521,0.00029187,28]
[321501853,1712249432308,-232.419185,0.00029414,2]
[321501854,1712249432317,-151.08998021,0.00029888,2]